fUSD/lending_fUSD_20260607
["ID","MTS","AMOUNT","RATE_DAILY","PERIOD"]
[424348906,1780777840000,-500.0,0.00012554,2]
[424348905,1780777840000,-500.0,0.00012554,2]
[424348904,1780777840000,-500.0,0.00012554,2]
[424348902,1780777840000,-150.0,0.00012554,2]
[424348901,1780777840000,-500.0,0.00012554,2]
[424348903,1780777840000,-500.0,0.00012554,2]
[424348907,1780777840000,-500.0,0.00012554,2]
[424348891,1780777840000,-500.0,0.00012554,2]
[424348935,1780777840000,-150.0,0.00013488,2]
[424348939,1780777840000,-150.0,0.00013488,2]
[424348942,1780777840000,-150.0,0.00013488,2]
[424348972,1780777840000,-266.25784613,0.00013669,2]
[424348978,1780777840000,-2430.86,0.00013698,2]
[424348973,1780777840000,-150.0,0.00013675,2]
[424348974,1780777840000,-150.0,0.00013679,2]
[424348977,1780777840000,-285.67310563,0.00013698,2]
[424348975,1780777840000,-266.25784613,0.00013684,2]
[424348976,1780777840000,-150.0,0.00013686,2]
[424348982,1780777840000,-2430.86,0.00013698,2]
[424348980,1780777840000,-2430.86,0.00013698,2]
[424348981,1780777840000,-2430.86,0.00013698,2]
[424348988,1780777840000,-500.0,0.00013698,2]
[424348986,1780777840000,-500.0,0.00013698,2]
[424348989,1780777840000,-634.29631724,0.00013698,2]
[424348990,1780777840000,-500.0,0.00013698,2]
[424348991,1780777840000,-500.0,0.00013698,2]
[424348984,1780777840000,-2430.86,0.00013698,2]
[424348985,1780777840000,-500.0,0.00013698,2]
[424348987,1780777840000,-500.0,0.00013698,2]
[424348993,1780777840000,-500.0,0.00013698,2]
[424348992,1780777840000,-500.0,0.00013698,2]
[424348996,1780777840000,-2327.07,0.00013699,2]
[424348994,1780777840000,-500.0,0.00013698,2]
[424348995,1780777840000,-500.0,0.00013698,2]
[424348999,1780777840000,-3923.55,0.00013699,2]
[424348997,1780777840000,-200.0,0.00013699,2]
[424348998,1780777840000,-166.66,0.00013699,2]
[424348941,1780777840000,-266.25784613,0.00013488,2]
[424348970,1780777840000,-150.0,0.00013657,2]
[424348971,1780777840000,-150.0,0.00013668,2]
[424348983,1780777840000,-2430.86,0.00013698,2]
[424348979,1780777840000,-2430.86,0.00013698,2]
[424348968,1780777840000,-150.0,0.00013647,2]
[424348940,1780777840000,-150.0,0.00013488,2]
[424348945,1780777840000,-266.25784613,0.00013518,2]
[424348955,1780777840000,-150.0,0.00013572,2]
[424348946,1780777840000,-150.0,0.0001352,2]
[424348948,1780777840000,-501.38933398,0.00013544,2]
[424348947,1780777840000,-266.25784613,0.00013533,2]
[424348944,1780777840000,-150.0,0.00013516,2]
[424348949,1780777840000,-150.0,0.00013544,2]
[424348952,1780777840000,-150.0,0.00013551,2]
[424348953,1780777840000,-266.25784613,0.00013563,2]
[424348954,1780777840000,-14708.07243303,0.00013567,2]
[424348951,1780777840000,-266.25784613,0.00013548,2]
[424348950,1780777840000,-150.0,0.00013548,2]
[424348938,1780777840000,-150.0,0.00013488,2]
[424348969,1780777840000,-266.25784613,0.00013654,2]
[424348956,1780777840000,-266.25784613,0.00013578,2]
[424348964,1780777840000,-150.0,0.00013615,2]
[424348963,1780777840000,-2000.0,0.00013612,2]
[424348965,1780777840000,-266.25784613,0.00013624,2]
[424348967,1780777840000,-266.25784613,0.00013639,2]
[424348966,1780777840000,-150.0,0.00013629,2]
[424348959,1780777840000,-266.25784613,0.00013594,2]
[424348957,1780777840000,-150.0,0.00013581,2]
[424348961,1780777840000,-150.0,0.00013608,2]
[424348960,1780777840000,-150.0,0.00013601,2]
[424348958,1780777840000,-150.0,0.00013583,2]
[424348962,1780777840000,-266.25784613,0.00013609,2]
[424349041,1780777841000,-150.0,0.00013799,2]
[424349043,1780777841000,-150.0,0.00013807,2]
[424349038,1780777841000,-266.25784613,0.00013775,2]
[424349034,1780777841000,-266.25784613,0.0001376,2]
[424349032,1780777841000,-150.0,0.00013743,2]
[424349067,1780777841000,-266.25784613,0.00013942,2]
[424349036,1780777841000,-150.0,0.0001377,2]
[424349030,1780777841000,-150.0,0.00013737,2]
[424349029,1780777841000,-266.25784613,0.0001373,2]
[424349039,1780777841000,-150.0,0.00013787,2]
[424349054,1780777841000,-150.0,0.0001387,2]
[424349033,1780777841000,-266.25784613,0.00013745,2]
[424349040,1780777841000,-266.25784613,0.0001379,2]
[424349051,1780777841000,-150.0,0.00013855,2]
[424349045,1780777841000,-150.0,0.00013827,2]
[424349052,1780777841000,-150.0,0.00013862,2]
[424349053,1780777841000,-266.25784613,0.00013866,2]
[424349044,1780777841000,-266.25784613,0.00013821,2]
[424349047,1780777841000,-266.25784613,0.00013836,2]
[424349048,1780777841000,-150.0,0.00013838,2]
[424349046,1780777841000,-166.66,0.00013836,2]
[424349050,1780777841000,-266.25784613,0.00013851,2]
[424349049,1780777841000,-150.0,0.00013847,2]
[424349056,1780777841000,-150.0,0.00013884,2]
[424349055,1780777841000,-266.25784613,0.00013881,2]
[424349057,1780777841000,-266.25784613,0.00013896,2]
[424349061,1780777841000,-150.0,0.00013907,2]
[424349065,1780777841000,-150.0,0.00013934,2]
[424349042,1780777841000,-266.25784613,0.00013806,2]
[424349031,1780777841000,-150.0,0.00013742,2]
[424349002,1780777841000,-1828.0,0.00013699,2]
[424349035,1780777841000,-150.0,0.00013769,2]
[424349001,1780777841000,-1828.0,0.00013699,2]
[424349000,1780777841000,-1828.0,0.00013699,2]
[424349003,1780777841000,-1828.0,0.00013699,2]
[424349005,1780777841000,-1828.0,0.00013699,2]
[424349006,1780777841000,-1828.0,0.00013699,2]
[424349004,1780777841000,-1828.0,0.00013699,2]
[424349009,1780777841000,-1828.0,0.00013699,2]
[424349014,1780777841000,-1828.0,0.00013699,2]
[424349007,1780777841000,-1828.0,0.00013699,2]
[424349011,1780777841000,-1828.0,0.00013699,2]
[424349013,1780777841000,-1828.0,0.00013699,2]
[424349015,1780777841000,-1828.0,0.00013699,2]
[424349008,1780777841000,-1828.0,0.00013699,2]
[424349037,1780777841000,-150.0,0.00013775,2]
[424349010,1780777841000,-1828.0,0.00013699,2]
[424349016,1780777841000,-1828.0,0.00013699,2]
[424349026,1780777841000,-150.0,0.00013714,2]
[424349027,1780777841000,-266.25784613,0.00013715,2]
[424349018,1780777841000,-1828.0,0.00013699,2]
[424349017,1780777841000,-1828.0,0.00013699,2]
[424349028,1780777841000,-150.0,0.00013727,2]
[424349019,1780777841000,-1828.0,0.00013699,2]
[424349024,1780777841000,-266.25784613,0.000137,2]
[424349023,1780777841000,-1835.71235742,0.00013699,2]
[424349025,1780777841000,-150.0,0.00013711,2]
[424349020,1780777841000,-1828.0,0.00013699,2]
[424349022,1780777841000,-1828.0,0.00013699,2]
[424349021,1780777841000,-1828.0,0.00013699,2]
[424349012,1780777841000,-1828.0,0.00013699,2]
[424349064,1780777841000,-266.25784613,0.00013927,2]
[424349087,1780777841000,-150.0,0.00013987,2]
[424349059,1780777841000,-14708.07243303,0.000139,2]
[424349096,1780777841000,-150.0,0.00014027,2]
[424349097,1780777841000,-150.0,0.0001403,2]
[424349098,1780777841000,-266.25784613,0.00014033,2]
[424349104,1780777841000,-266.25784613,0.00014078,2]
[424349099,1780777841000,-266.25784613,0.00014048,2]
[424349100,1780777841000,-150.0,0.0001405,2]
[424349102,1780777841000,-150.0,0.00014062,2]
[424349101,1780777841000,-150.0,0.00014053,2]
[424349103,1780777841000,-266.25784613,0.00014063,2]
[424349107,1780777841000,-150.0,0.00014087,2]
[424349109,1780777841000,-150.0,0.00014094,2]
[424349108,1780777841000,-266.25784613,0.00014093,2]
[424349110,1780777841000,-266.25784613,0.00014108,2]
[424349106,1780777841000,-500.0,0.00014082,2]
[424349116,1780777841000,-266.25784613,0.00014139,2]
[424349115,1780777841000,-150.0,0.00014138,2]
[424349118,1780777841000,-150.0,0.00014147,2]
[424349111,1780777841000,-166.66,0.0001411,2]
[424349114,1780777841000,-150.0,0.00014125,2]
[424349112,1780777841000,-150.0,0.0001411,2]
[424349117,1780777841000,-150.0,0.00014143,2]
[424349120,1780777841000,-150.0,0.00014157,2]
[424349119,1780777841000,-266.25784613,0.00014154,2]
[424349124,1780777841000,-150.0,0.00014189,2]
[424349121,1780777841000,-150.0,0.00014166,2]
[424349122,1780777841000,-266.25784613,0.00014169,2]
[424349125,1780777841000,-150.0,0.00014195,2]
[424349063,1780777841000,-150.0,0.00013912,2]
[424349113,1780777841000,-266.25784613,0.00014123,2]
[424349094,1780777841000,-266.25784613,0.00014017,2]
[424349123,1780777841000,-266.25784613,0.00014184,2]
[424349095,1780777841000,-150.0,0.00014025,2]
[424349105,1780777841000,-150.0,0.00014081,2]
[424349058,1780777841000,-500.0,0.00013899,2]
[424349060,1780777841000,-150.0,0.00013902,2]
[424349062,1780777841000,-266.25784613,0.00013912,2]
[424349071,1780777841000,-150.0,0.00013967,2]
[424349069,1780777841000,-266.25784613,0.00013957,2]
[424349079,1780777841000,-458.0,0.00013972,2]
[424349080,1780777841000,-445.0,0.00013972,2]
[424349068,1780777841000,-150.0,0.00013956,2]
[424349072,1780777841000,-150.0,0.00013968,2]
[424349074,1780777841000,-445.0,0.00013972,2]
[424349070,1780777841000,-150.0,0.00013966,2]
[424349073,1780777841000,-266.25784613,0.00013972,2]
[424349075,1780777841000,-453.0,0.00013972,2]
[424349066,1780777841000,-150.0,0.0001394,2]
[424349078,1780777841000,-442.0,0.00013972,2]
[424349076,1780777841000,-449.0,0.00013972,2]
[424349086,1780777841000,-166.66,0.00013973,2]
[424349088,1780777841000,-266.25784613,0.00013987,2]
[424349089,1780777841000,-150.0,0.00013997,2]
[424349082,1780777841000,-442.0,0.00013972,2]
[424349083,1780777841000,-452.0,0.00013972,2]
[424349090,1780777841000,-150.0,0.00013998,2]
[424349085,1780777841000,-447.0,0.00013972,2]
[424349092,1780777841000,-2313.79356356,0.00014,2]
[424349093,1780777841000,-266.25784613,0.00014002,2]
[424349091,1780777841000,-250.0,0.00014,2]
[424349081,1780777841000,-442.0,0.00013972,2]
[424349077,1780777841000,-446.0,0.00013972,2]
[424349084,1780777841000,-446.0,0.00013972,2]
[424349163,1780777842000,-150.0,0.00014393,2]
[424349161,1780777842000,-166.66,0.00014384,2]
[424349167,1780777842000,-150.0,0.00014421,2]
[424349162,1780777842000,-150.0,0.00014387,2]
[424349158,1780777842000,-266.25784613,0.00014366,2]
[424349166,1780777842000,-150.0,0.00014412,2]
[424349165,1780777842000,-266.25784613,0.00014411,2]
[424349159,1780777842000,-150.0,0.0001438,2]
[424349157,1780777842000,-150.0,0.00014364,2]
[424349156,1780777842000,-266.25784613,0.00014351,2]
[424349164,1780777842000,-266.25784613,0.00014396,2]
[424349160,1780777842000,-266.25784613,0.00014381,2]
[424349172,1780777842000,-150.0,0.00014447,2]
[424349168,1780777842000,-150.0,0.00014424,2]
[424349170,1780777842000,-266.25784613,0.00014441,2]
[424349174,1780777842000,-266.25784613,0.00014456,2]
[424349171,1780777842000,-150.0,0.00014444,2]
[424349176,1780777842000,-150.0,0.00014476,2]
[424349173,1780777842000,-150.0,0.00014449,2]
[424349175,1780777842000,-266.25784613,0.00014472,2]
[424349178,1780777842000,-150.0,0.00014487,2]
[424349177,1780777842000,-150.0,0.00014477,2]
[424349179,1780777842000,-266.25784613,0.00014487,2]
[424349180,1780777842000,-266.25784613,0.00014502,2]
[424349154,1780777842000,-150.0,0.00014336,2]
[424349181,1780777842000,-150.0,0.00014506,2]
[424349169,1780777842000,-266.25784613,0.00014426,2]
[424349155,1780777842000,-150.0,0.00014349,2]
[424349140,1780777842000,-150.0,0.00014253,2]
[424349152,1780777842000,-150.0,0.00014331,2]
[424349184,1780777842000,-150.0,0.00014507,2]
[424349128,1780777842000,-150.0,0.00014207,2]
[424349126,1780777842000,-2430.86,0.00014197,2]
[424349127,1780777842000,-266.25784613,0.00014199,2]
[424349129,1780777842000,-1839.60337747,0.0001421,7]
[424349130,1780777842000,-266.25784613,0.00014214,2]
[424349132,1780777842000,-150.0,0.00014223,2]
[424349131,1780777842000,-150.0,0.00014221,2]
[424349133,1780777842000,-266.25784613,0.00014229,2]
[424349134,1780777842000,-14708.07243303,0.00014233,2]
[424349135,1780777842000,-150.0,0.00014237,2]
[424349136,1780777842000,-150.0,0.00014237,2]
[424349153,1780777842000,-266.25784613,0.00014335,2]
[424349137,1780777842000,-266.25784613,0.00014245,2]
[424349138,1780777842000,-166.66,0.00014247,2]
[424349141,1780777842000,-266.25784613,0.0001426,2]
[424349142,1780777842000,-150.0,0.00014267,2]
[424349143,1780777842000,-266.25784613,0.00014275,2]
[424349144,1780777842000,-150.0,0.00014279,2]
[424349147,1780777842000,-266.25784613,0.00014305,2]
[424349145,1780777842000,-150.0,0.00014285,2]
[424349148,1780777842000,-150.0,0.00014308,2]
[424349149,1780777842000,-150.0,0.00014317,2]
[424349146,1780777842000,-266.25784613,0.0001429,2]
[424349150,1780777842000,-266.25784613,0.0001432,2]
[424349151,1780777842000,-150.0,0.00014327,2]
[424349139,1780777842000,-150.0,0.00014251,2]
[424349192,1780777842000,-167.96129714,0.00014535,2]
[424349188,1780777842000,-266.25784613,0.00014517,2]
[424349191,1780777842000,-150.0,0.00014534,2]
[424349234,1780777842000,-266.25784613,0.00014744,2]
[424349235,1780777842000,-150.0,0.00014747,2]
[424349233,1780777842000,-150.0,0.00014737,2]
[424349227,1780777842000,-266.25784613,0.00014714,2]
[424349226,1780777842000,-150.0,0.00014705,2]
[424349225,1780777842000,-150.0,0.00014704,2]
[424349236,1780777842000,-8841.2394147,0.00014757,2]
[424349224,1780777842000,-150.0,0.00014699,2]
[424349237,1780777842000,-449.8513379,0.00014757,2]
[424349230,1780777842000,-150.0,0.00014731,2]
[424349229,1780777842000,-266.25784613,0.00014729,2]
[424349232,1780777842000,-150.0,0.00014732,2]
[424349238,1780777842000,-65275.3604791,0.00014757,2]
[424349240,1780777842000,-3590.2921171,0.00014757,2]
[424349242,1780777842000,-150.0,0.0001476,2]
[424349241,1780777842000,-266.25784613,0.00014759,2]
[424349250,1780777842000,-150.0,0.00014799,2]
[424349239,1780777842000,-1596.8288405,0.00014757,2]
[424349243,1780777842000,-150.0,0.00014763,2]
[424349245,1780777842000,-150.0,0.00014788,2]
[424349244,1780777842000,-266.25784613,0.00014774,2]
[424349246,1780777842000,-266.25784613,0.0001479,2]
[424349248,1780777842000,-150.0,0.00014795,2]
[424349259,1780777842000,-266.25784613,0.0001482,2]
[424349254,1780777842000,-150.0,0.00014806,2]
[424349252,1780777842000,-266.25784613,0.00014805,2]
[424349190,1780777842000,-266.25784613,0.00014532,2]
[424349222,1780777842000,-266.25784613,0.00014699,2]
[424349216,1780777842000,-266.25784613,0.00014653,2]
[424349257,1780777842000,-150.0,0.00014817,2]
[424349218,1780777842000,-266.25784613,0.00014668,2]
[424349221,1780777842000,-150.0,0.00014687,2]
[424349193,1780777842000,-150.64131538,0.00014535,2]
[424349186,1780777842000,-150.0,0.00014508,2]
[424349189,1780777842000,-150.0,0.00014518,2]
[424349194,1780777842000,-495.39674861,0.00014535,2]
[424349195,1780777842000,-150.0,0.0001454,2]
[424349196,1780777842000,-266.25784613,0.00014547,2]
[424349197,1780777842000,-150.0,0.00014562,2]
[424349206,1780777842000,-266.25784613,0.00014608,2]
[424349199,1780777842000,-14708.07243303,0.00014567,2]
[424349207,1780777842000,-150.0,0.00014612,2]
[424349203,1780777842000,-150.0,0.0001459,2]
[424349202,1780777842000,-266.25784613,0.00014578,2]
[424349198,1780777842000,-266.25784613,0.00014562,2]
[424349201,1780777842000,-150.0,0.00014572,2]
[424349200,1780777842000,-150.0,0.00014567,2]
[424349220,1780777842000,-266.25784613,0.00014684,2]
[424349217,1780777842000,-150.0,0.00014667,2]
[424349219,1780777842000,-150.0,0.00014675,2]
[424349211,1780777842000,-150.0,0.00014636,2]
[424349210,1780777842000,-150.0,0.00014627,2]
[424349209,1780777842000,-266.25784613,0.00014623,2]
[424349213,1780777842000,-150.0,0.00014647,2]
[424349204,1780777842000,-266.25784613,0.00014593,2]
[424349205,1780777842000,-150.0,0.00014604,2]
[424349208,1780777842000,-150.0,0.00014619,2]
[424349212,1780777842000,-266.25784613,0.00014638,2]
[424349318,1780777843000,-266.25784613,0.00014986,2]
[424349321,1780777843000,-500.0,0.00014999,2]
[424349324,1780777843000,-500.0,0.00014999,2]
[424349322,1780777843000,-500.0,0.00014999,2]
[424349304,1780777843000,-266.25784613,0.00014956,2]
[424349316,1780777843000,-150.0,0.00014986,2]
[424349317,1780777843000,-169.15934622,0.00014986,2]
[424349315,1780777843000,-158.73968764,0.00014986,2]
[424349312,1780777843000,-151.0,0.00014986,2]
[424349320,1780777843000,-500.0,0.00014998,2]
[424349319,1780777843000,-160.88134904,0.00014986,2]
[424349323,1780777843000,-500.0,0.00014999,2]
[424349346,1780777843000,-500.0,0.00014999,2]
[424349331,1780777843000,-500.0,0.00014999,2]
[424349329,1780777843000,-500.0,0.00014999,2]
[424349327,1780777843000,-500.0,0.00014999,2]
[424349330,1780777843000,-500.0,0.00014999,2]
[424349332,1780777843000,-500.0,0.00014999,2]
[424349333,1780777843000,-500.0,0.00014999,2]
[424349326,1780777843000,-500.0,0.00014999,2]
[424349336,1780777843000,-500.0,0.00014999,2]
[424349337,1780777843000,-500.0,0.00014999,2]
[424349335,1780777843000,-500.0,0.00014999,2]
[424349334,1780777843000,-500.0,0.00014999,2]
[424349328,1780777843000,-500.0,0.00014999,2]
[424349302,1780777843000,-266.25784613,0.00014941,2]
[424349325,1780777843000,-500.0,0.00014999,2]
[424349303,1780777843000,-150.0,0.00014954,2]
[424349285,1780777843000,-1716.71755349,0.000149,2]
[424349310,1780777843000,-151.5407187,0.00014986,2]
[424349348,1780777843000,-500.0,0.00014999,2]
[424349265,1780777843000,-150.0,0.00014845,2]
[424349263,1780777843000,-266.25784613,0.00014835,2]
[424349261,1780777843000,-150.0,0.00014827,2]
[424349267,1780777843000,-266.25784613,0.0001485,2]
[424349269,1780777843000,-150.0,0.00014859,2]
[424349273,1780777843000,-150.0,0.00014866,2]
[424349271,1780777843000,-266.25784613,0.00014865,2]
[424349275,1780777843000,-150.0,0.00014873,2]
[424349277,1780777843000,-266.25784613,0.0001488,2]
[424349280,1780777843000,-150.0,0.00014891,2]
[424349281,1780777843000,-150.0,0.00014893,2]
[424349283,1780777843000,-266.25784613,0.00014895,2]
[424349297,1780777843000,-495.39674861,0.00014918,2]
[424349293,1780777843000,-291.49330483,0.00014908,2]
[424349295,1780777843000,-266.25784613,0.00014911,2]
[424349287,1780777843000,-25000.0,0.000149,3]
[424349289,1780777843000,-14708.07243303,0.000149,2]
[424349291,1780777843000,-150.0,0.00014901,2]
[424349298,1780777843000,-150.0,0.00014923,2]
[424349299,1780777843000,-266.25784613,0.00014926,2]
[424349301,1780777843000,-150.0,0.0001493,2]
[424349306,1780777843000,-166.66,0.00014971,2]
[424349309,1780777843000,-150.0,0.00014986,2]
[424349308,1780777843000,-266.25784613,0.00014971,2]
[424349305,1780777843000,-150.0,0.00014958,2]
[424349311,1780777843000,-151.41923819,0.00014986,2]
[424349300,1780777843000,-150.0,0.00014926,2]
[424349350,1780777843000,-500.0,0.00014999,2]
[424349313,1780777843000,-151.0,0.00014986,2]
[424349349,1780777843000,-500.0,0.00014999,2]
[424349370,1780777843000,-500.0,0.00014999,2]
[424349371,1780777843000,-500.0,0.00014999,2]
[424349376,1780777843000,-500.0,0.00014999,2]
[424349378,1780777843000,-500.0,0.00014999,2]
[424349379,1780777843000,-500.0,0.00014999,2]
[424349381,1780777843000,-500.0,0.00014999,2]
[424349377,1780777843000,-500.0,0.00014999,2]
[424349387,1780777843000,-500.0,0.00014999,2]
[424349382,1780777843000,-500.0,0.00014999,2]
[424349383,1780777843000,-500.0,0.00014999,2]
[424349384,1780777843000,-500.0,0.00014999,2]
[424349386,1780777843000,-500.0,0.00014999,2]
[424349385,1780777843000,-500.0,0.00014999,2]
[424349389,1780777843000,-500.0,0.00014999,2]
[424349388,1780777843000,-500.0,0.00014999,2]
[424349391,1780777843000,-500.0,0.00014999,2]
[424349394,1780777843000,-500.0,0.00014999,2]
[424349390,1780777843000,-500.0,0.00014999,2]
[424349392,1780777843000,-500.0,0.00014999,2]
[424349397,1780777843000,-500.0,0.00014999,2]
[424349393,1780777843000,-500.0,0.00014999,2]
[424349395,1780777843000,-500.0,0.00014999,2]
[424349398,1780777843000,-500.0,0.00014999,2]
[424349396,1780777843000,-500.0,0.00014999,2]
[424349399,1780777843000,-500.0,0.00014999,2]
[424349401,1780777843000,-500.0,0.00014999,2]
[424349347,1780777843000,-500.0,0.00014999,2]
[424349373,1780777843000,-500.0,0.00014999,2]
[424349374,1780777843000,-500.0,0.00014999,2]
[424349380,1780777843000,-500.0,0.00014999,2]
[424349369,1780777843000,-500.0,0.00014999,2]
[424349338,1780777843000,-500.0,0.00014999,2]
[424349340,1780777843000,-500.0,0.00014999,2]
[424349339,1780777843000,-500.0,0.00014999,2]
[424349341,1780777843000,-500.0,0.00014999,2]
[424349344,1780777843000,-500.0,0.00014999,2]
[424349342,1780777843000,-500.0,0.00014999,2]
[424349372,1780777843000,-500.0,0.00014999,2]
[424349343,1780777843000,-500.0,0.00014999,2]
[424349351,1780777843000,-500.0,0.00014999,2]
[424349354,1780777843000,-500.0,0.00014999,2]
[424349353,1780777843000,-500.0,0.00014999,2]
[424349352,1780777843000,-500.0,0.00014999,2]
[424349355,1780777843000,-500.0,0.00014999,2]
[424349356,1780777843000,-500.0,0.00014999,2]
[424349345,1780777843000,-500.0,0.00014999,2]
[424349362,1780777843000,-500.0,0.00014999,2]
[424349358,1780777843000,-500.0,0.00014999,2]
[424349368,1780777843000,-500.0,0.00014999,2]
[424349366,1780777843000,-500.0,0.00014999,2]
[424349375,1780777843000,-500.0,0.00014999,2]
[424349364,1780777843000,-500.0,0.00014999,2]
[424349365,1780777843000,-500.0,0.00014999,2]
[424349367,1780777843000,-500.0,0.00014999,2]
[424349400,1780777843000,-500.0,0.00014999,2]
[424349357,1780777843000,-500.0,0.00014999,2]
[424349360,1780777843000,-500.0,0.00014999,2]
[424349363,1780777843000,-500.0,0.00014999,2]
[424349361,1780777843000,-500.0,0.00014999,2]
[424349359,1780777843000,-500.0,0.00014999,2]
[424349412,1780777844000,-500.0,0.00014999,2]
[424349408,1780777844000,-500.0,0.00014999,2]
[424349415,1780777844000,-500.0,0.00014999,2]
[424349425,1780777844000,-300.0,0.00014999,2]
[424349424,1780777844000,-300.0,0.00014999,2]
[424349423,1780777844000,-300.0,0.00014999,2]
[424349413,1780777844000,-500.0,0.00014999,2]
[424349407,1780777844000,-500.0,0.00014999,2]
[424349404,1780777844000,-500.0,0.00014999,2]
[424349409,1780777844000,-500.0,0.00014999,2]
[424349411,1780777844000,-500.0,0.00014999,2]
[424349406,1780777844000,-500.0,0.00014999,2]
[424349405,1780777844000,-500.0,0.00014999,2]
[424349402,1780777844000,-500.0,0.00014999,2]
[424349403,1780777844000,-500.0,0.00014999,2]
[424349421,1780777844000,-300.0,0.00014999,2]
[424349410,1780777844000,-500.0,0.00014999,2]
[424349416,1780777844000,-682.36022223,0.00014999,2]
[424349414,1780777844000,-500.0,0.00014999,2]
[424349419,1780777844000,-300.0,0.00014999,2]
[424349420,1780777844000,-666.0,0.00014999,2]
[424349436,1780777844000,-47638.26990554,0.00015,2]
[424349437,1780777844000,-17614.77185017,0.00015,2]
[424349438,1780777844000,-7182.11111562,0.00015,2]
[424349435,1780777844000,-5747.33494689,0.00015,2]
[424349434,1780777844000,-1445.32999998,0.00015,2]
[424349433,1780777844000,-1569.04033162,0.00015,2]
[424349430,1780777844000,-500.0,0.00015,2]
[424349432,1780777844000,-6046.59409495,0.00015,2]
[424349439,1780777844000,-732.89412054,0.00015,2]
[424349429,1780777844000,-280.89520785,0.00015,2]
[424349422,1780777844000,-666.0,0.00014999,2]
[424349417,1780777844000,-300.0,0.00014999,2]
[424349418,1780777844000,-666.0,0.00014999,2]
[424349431,1780777844000,-10491.31391036,0.00015,2]
[424349427,1780777844000,-170.82,0.00015,2]
[424349428,1780777844000,-19140634.41782453,0.00015,2]
[424349426,1780777844000,-666.0,0.00014999,2]
[424349442,1780777845000,-5358.0,0.00015,2]
[424349443,1780777845000,-316.4671945,0.00015,2]
[424349440,1780777845000,-379.43999998,0.00015,2]
[424349441,1780777845000,-804.8152909,0.00015,2]
[424349459,1780777846000,-35475.25222215,0.00015,2]
[424349457,1780777846000,-2645.76287893,0.00015,2]
[424349456,1780777846000,-30948.84,0.00015,2]
[424349458,1780777846000,-9433.41636287,0.00015,2]
[424349461,1780777847000,-1634.79999985,0.00015,2]
[424349463,1780777847000,-96564.6495,0.00015,2]
[424349460,1780777847000,-3.85325401,0.00015,2]
[424349462,1780777847000,-9424.99999995,0.00015,2]
[424349472,1780778118000,286.34192919,0.0003013,120]
[424349478,1780778417000,1413.62962886,0.0003013,120]
[424349491,1780779032000,-1201.47362106,0.00011442,2]
[424349492,1780779032000,-439.950967,0.000115,2]
[424349489,1780779032000,-200.38,9.638e-05,2]
[424349490,1780779032000,-1649.54141694,0.00011442,2]
[424349545,1780779038000,-500.0,0.00011596,2]
[424349550,1780779038000,-2000.0,0.000116,2]
[424349551,1780779038000,-33261.1868,0.000116,2]
[424349552,1780779038000,-510.86607038,0.00011632,2]
[424349549,1780779038000,-256.51283749,0.00011599,2]
[424349553,1780779038000,-215.80795776,0.0001168,2]
[424349548,1780779038000,-500.0,0.00011596,2]
[424349555,1780779038000,-3522.13,0.00012047,2]
[424349554,1780779038000,-250.0,0.0001168,2]